fUST/lending_fUST_20240809
["ID","MTS","AMOUNT","RATE_DAILY","PERIOD"]
[334479209,1723153839663,-500.0,0.00024118,2]
[334479210,1723153839673,-202.7917644,0.00024118,2]
[334479211,1723153839683,-500.0,0.00024118,2]
[334479212,1723153839692,-1000.0,0.00024119,2]
[334479213,1723153839702,-34901.4911127,0.00024161,3]
[334479214,1723153839711,-252.0,0.00024164,2]
[334479215,1723153839720,-17996.0413967,0.00024245,2]
[334479216,1723153839730,-5169.85729746,0.00024339,2]
[334479217,1723153839739,-2605.08504403,0.000245,2]
[334479218,1723153839749,-5169.85729746,0.00024589,2]
[334479219,1723153839758,-153.0,0.00024667,2]
[334479220,1723153839767,-153.0,0.00024667,2]
[334479221,1723153839776,-34901.4911127,0.00024785,3]
[334479222,1723153839786,-153.0,0.00024795,2]
[334479223,1723153839795,-5169.85729746,0.00024859,2]
[334479224,1723153839804,-34901.4911127,0.0002487,3]
[334479225,1723153839813,-150.112233,0.000249,3]
[334479226,1723153839823,-17996.0413967,0.00024927,2]
[334479227,1723153839835,-34901.4911127,0.0002497,3]
[334479228,1723153839845,-34901.4911127,0.0002499,3]
[334479229,1723153839855,-189.63844992,0.00025,2]
[334479230,1723153839865,-1363.91466198,0.00025,2]
[334479231,1723153839875,-23201.42953338,0.00025,30]
[334479232,1723153839884,-402.58073778,0.00025,2]
[334479233,1723153839894,-299.4439556,0.00025,2]
[334479234,1723153839903,-500.0,0.00025,2]
[334479235,1723153839914,-620.83847714,0.00025005,2]
[334479236,1723153839924,-150.112233,0.000251,7]
[334479237,1723153839935,-150.112233,0.000251,10]
[334479238,1723153839945,-5169.85729746,0.00025201,2]
[334479239,1723153839954,-501.199807,0.00025205,2]
[334479240,1723153839963,-150.112233,0.000254,9]
[334479241,1723153839972,-5169.85729746,0.00025451,2]
[334479242,1723153839981,-17996.0413967,0.00025609,2]
[334479243,1723153839991,-150.112233,0.000257,5]
[334479244,1723153840001,-153.0,0.00025709,2]
[334479245,1723153840011,-153.0,0.00025709,2]
[334479246,1723153840021,-153.0,0.00025709,2]
[334479247,1723153840031,-153.0,0.00025709,2]
[334479249,1723153840040,-153.0,0.00025709,2]
[334479250,1723153840051,-153.0,0.00025709,2]
[334479251,1723153840062,-153.0,0.00025709,2]
[334479252,1723153840072,-5169.85729746,0.00025726,2]
[334479253,1723153840086,-250.0,0.00025775,2]
[334479254,1723153840101,-5169.85729746,0.00025808,2]
[334479255,1723153840111,-150.112233,0.000259,5]
[334479256,1723153840122,-46000.0,0.00026,2]
[334479257,1723153840132,-200.0,0.00026027,2]
[334479258,1723153840142,-5169.85729746,0.00026151,2]
[334479259,1723153840153,-150.112233,0.000262,5]
[334479260,1723153840166,-620.04192386,0.00026255,2]
[334479261,1723153840176,-293.5860985,0.00026329,2]
[334479262,1723153840186,-267.747436,0.00026329,2]
[334479263,1723153840196,-5169.85729746,0.00026336,2]
[334479264,1723153840205,-207.1717265,0.00026356,2]
[334479265,1723153840215,-527.4485222,0.00026356,2]
[334479266,1723153840224,-207.1717265,0.00026356,2]
[334479267,1723153840233,-4264.80409805,0.000264,4]
[334479268,1723153840242,-150.112233,0.000264,5]
[334479269,1723153840252,-5000.0,0.000264,20]
[334479270,1723153840261,-150.0,0.00026408,2]
[334479271,1723153840271,-430.0507029,0.00026438,2]
[334479272,1723153840280,-6512.96041541,0.00026472,2]
[334479273,1723153840290,-192.2194507,0.00026526,2]
[334479275,1723153840301,-414.343453,0.00026575,2]
[334479276,1723153840310,-207.1717265,0.00026575,2]
[334479277,1723153840320,-207.1717265,0.00026575,2]
[334479278,1723153840331,-294.4971025,0.00026575,2]
[334479279,1723153840341,-153.0,0.00026575,2]
[334479280,1723153840350,-267.747436,0.00026575,2]
[334479281,1723153840360,-294.4971025,0.00026575,2]
[334479282,1723153840370,-153.0,0.00026575,2]
[334479283,1723153840379,-207.1717265,0.00026575,2]
[334479284,1723153840388,-153.0,0.00026575,2]
[334479285,1723153840399,-306.0,0.00026575,2]
[334479286,1723153840408,-207.1717265,0.00026575,2]
[334479287,1723153840417,-294.4971025,0.00026575,2]
[334479288,1723153840427,-267.747436,0.00026575,2]
[334479289,1723153840437,-153.0,0.00026575,2]
[334479290,1723153840446,-153.0,0.00026575,2]
[334479291,1723153840456,-294.4971025,0.00026575,2]
[334479292,1723153840466,-267.747436,0.00026575,2]
[334479293,1723153840475,-207.1717265,0.00026575,2]
[334479294,1723153840485,-153.0,0.00026575,2]
[334479295,1723153840495,-153.0,0.00026575,2]
[334479296,1723153840504,-294.4971025,0.00026575,2]
[334479297,1723153840514,-294.4971025,0.00026575,2]
[334479298,1723153840523,-153.0,0.00026575,2]
[334479299,1723153840535,-153.0,0.00026575,2]
[334479300,1723153840545,-294.4971025,0.00026575,2]
[334479301,1723153840556,-153.0,0.00026575,2]
[334479302,1723153840566,-294.4971025,0.00026575,2]
[334479303,1723153840576,-153.0,0.00026575,2]
[334479305,1723153840593,-153.0,0.00026575,2]
[334479307,1723153840605,-294.4971025,0.00026575,2]
[334479308,1723153840615,-153.0,0.00026575,2]
[334479309,1723153840626,-294.4971025,0.00026575,2]
[334479310,1723153840637,-153.0,0.00026575,2]
[334479311,1723153840646,-153.0,0.00026575,2]
[334479312,1723153840656,-153.0,0.00026575,2]
[334479313,1723153840665,-153.0,0.00026575,2]
[334479314,1723153840676,-153.0,0.00026575,2]
[334479316,1723153840685,-153.0,0.00026575,2]
[334479318,1723153840694,-207.1717265,0.00026575,2]
[334479319,1723153840703,-150.112233,0.000267,10]
[334479320,1723153840714,-150.0,0.00026724,2]
[334479321,1723153840724,-5169.85729746,0.00026755,2]
[334479322,1723153840734,-302.72750298,0.00026784,10]
[334479323,1723153840744,-755.28461468,0.00026827,2]
[334479324,1723153840754,-150.112233,0.000269,6]
[334479325,1723153840766,-3000.0,0.000269,2]
[334479326,1723153840776,-150.0,0.00026901,2]
[334479327,1723153840786,-3000.0,0.0002691,2]
[334479328,1723153840795,-3000.0,0.0002692,2]
[334479329,1723153840805,-3000.0,0.0002693,2]
[334479330,1723153840814,-3000.0,0.0002694,2]
[334479331,1723153840823,-3000.0,0.0002695,2]
[334479332,1723153840846,-3000.0,0.0002696,2]
[334479333,1723153840855,-3000.0,0.0002697,2]
[334479334,1723153840868,-151.0,0.0002697,7]
[334479335,1723153840877,-151.0,0.0002697,7]
[334479336,1723153840887,-151.0,0.0002697,7]
[334479337,1723153840896,-151.0,0.0002697,7]
[334479338,1723153840905,-3000.0,0.0002698,2]
[334479339,1723153840915,-500.01,0.0002699,2]
[334479340,1723153840924,-3000.0,0.0002699,2]
[334479341,1723153840934,-1262.406341,0.00027,2]
[334479342,1723153840943,-3000.0,0.00027,2]
[334479343,1723153840952,-170.390512,0.00027,7]
[334479344,1723153840962,-170.390512,0.00027,7]
[334479345,1723153840971,-294.211341,0.00027,7]
[334479346,1723153840981,-294.211341,0.00027,7]
[334479347,1723153840990,-151.0,0.00027,7]
[334479348,1723153840999,-151.0,0.00027,7]
[334479349,1723153841008,-151.0,0.00027,7]
[334479350,1723153841017,-151.0,0.00027,7]
[334479351,1723153841026,-151.661857,0.00027,7]
[334479352,1723153841035,-151.0,0.00027,7]
[334479353,1723153841045,-278.816776,0.00027,7]
[334479355,1723153841055,-242.314043,0.00027,7]
[334479357,1723153841065,-242.314043,0.00027,7]
[334479360,1723153841075,-172.0,0.00027,2]
[334479361,1723153841092,-3000.0,0.0002701,2]
[334479362,1723153841103,-3000.0,0.0002702,2]
[334479363,1723153841114,-151.445866,0.0002702,7]
[334479364,1723153841125,-151.0,0.0002702,7]
[334479365,1723153841136,-170.394775,0.0002702,7]
[334479366,1723153841146,-170.394775,0.0002702,7]
[334479367,1723153841157,-151.0,0.0002702,7]
[334479368,1723153841170,-151.0,0.0002702,7]
[334479369,1723153841181,-262.589626,0.0002702,7]
[334479370,1723153841190,-262.589626,0.0002702,7]
[334479371,1723153841200,-151.0,0.0002702,7]
[334479372,1723153841210,-151.0,0.0002702,7]
[334479373,1723153841219,-151.0,0.0002702,7]
[334479374,1723153841231,-151.0,0.0002702,7]
[334479375,1723153841242,-151.0,0.0002702,7]
[334479376,1723153841253,-151.0,0.0002702,7]
[334479377,1723153841263,-151.0,0.0002702,7]
[334479378,1723153841273,-151.0,0.0002702,7]
[334479379,1723153841282,-151.0,0.0002702,7]
[334479380,1723153841292,-151.0,0.0002702,7]
[334479381,1723153841302,-3000.0,0.0002703,2]
[334479382,1723153841311,-151.0,0.0002703,7]
[334479383,1723153841321,-151.0,0.0002703,7]
[334479384,1723153841336,-151.0,0.0002703,2]
[334479385,1723153841346,-3000.0,0.0002704,2]
[334479386,1723153841355,-3000.0,0.0002705,2]
[334479387,1723153841365,-3000.0,0.0002706,2]
[334479388,1723153841375,-3000.0,0.0002707,2]
[334479389,1723153841385,-3000.0,0.0002708,2]
[334479390,1723153841395,-3000.0,0.0002709,2]
[334479391,1723153841405,-150.112233,0.000271,7]
[334479392,1723153841414,-3000.0,0.000271,2]
[334479393,1723153841424,-5169.85729746,0.00027101,2]
[334479394,1723153841435,-151.0,0.0002711,7]
[334479395,1723153841445,-151.0,0.0002711,7]
[334479396,1723153841456,-151.0,0.0002711,7]
[334479397,1723153841466,-3000.0,0.0002711,2]
[334479398,1723153841475,-151.0,0.0002711,7]
[334479399,1723153841485,-151.0,0.0002711,7]
[334479400,1723153841495,-4110.59549,0.0002712,2]
[334479401,1723153841504,-150.0,0.00027151,2]
[334479402,1723153841514,-507.0,0.00027151,2]
[334479403,1723153841523,-1532.749,0.00027151,2]
[334479404,1723153841533,-303.2178083,0.00027151,2]
[334479405,1723153841544,-207.1717265,0.00027151,2]
[334479406,1723153841554,-207.1717265,0.00027151,2]
[334479407,1723153841565,-299.4402577,0.00027151,2]
[334479408,1723153841574,-294.4971025,0.00027151,2]
[334479409,1723153841587,-294.4971025,0.00027151,2]
[334479410,1723153841596,-153.0,0.00027151,2]
[334479411,1723153841605,-294.4971025,0.00027151,2]
[334479412,1723153841614,-455.4154248,0.00027151,2]
[334479413,1723153841624,-294.4971025,0.00027151,2]
[334479414,1723153841633,-153.0,0.00027151,2]
[334479415,1723153841642,-588.994205,0.00027151,2]
[334479416,1723153841652,-382.8207795,0.00027151,2]
[334479417,1723153841661,-294.4971025,0.00027151,2]
[334479418,1723153841670,-153.0,0.00027151,2]
[334479419,1723153841679,-294.4971025,0.00027151,2]
[334479420,1723153841688,-169.184087,0.00027167,2]
[334479421,1723153841698,-204.7833251,0.00027178,2]
[334479422,1723153841709,-151.0,0.00027256,7]
[334479423,1723153841721,-151.0,0.00027256,7]
[334479424,1723153841735,-2000.0,0.00027297,2]
[334479425,1723153841745,-151.0,0.00027297,7]
[334479426,1723153841756,-151.0,0.00027297,2]
[334479427,1723153841765,-151.0,0.00027297,7]
[334479428,1723153841774,-151.0,0.00027297,7]
[334479429,1723153841783,-152.329468,0.00027297,7]
[334479430,1723153841793,-151.0,0.00027297,7]
[334479431,1723153841807,-44472.36982265,0.000273,2]
[334479432,1723153841829,-16005.32501764,0.000273,2]
[334479433,1723153841857,-21256.80510721,0.000273,2]
[334479434,1723153842236,-9031.18559774,0.0001904,2]
[334479435,1723153842247,-10181.96802,0.0001904,2]
[334479436,1723153842509,-2335.72478797,0.0001904,2]
[334479437,1723153842520,-33469.17319707,0.000273,2]
[334479438,1723153842530,-151.0,0.000273,7]
[334479439,1723153842539,-151.0,0.000273,7]
[334479440,1723153842549,-151.0,0.000273,7]
[334479441,1723153842559,-151.0,0.000273,7]
[334479442,1723153842568,-151.0,0.000273,7]
[334479443,1723153842583,-176.528033,0.000273,7]
[334479444,1723153842593,-151.0,0.000273,7]
[334479445,1723153842602,-388.143646,0.000273,7]
[334479446,1723153842611,-1000.0,0.00027346,2]
[334479447,1723153842620,-1000.0,0.00027365,2]
[334479448,1723153842629,-200.0,0.00027373,2]
[334479449,1723153842639,-1000.0,0.00027378,2]
[334479450,1723153842648,-250.0,0.00027386,2]
[334479451,1723153842657,-305.65463372,0.0002739,2]
[334479452,1723153842666,-160.0,0.00027396,10]
[334479453,1723153842675,-607.96780263,0.00027397,7]
[334479454,1723153842684,-500.0,0.00027397,7]
[334479455,1723153842694,-500.0,0.00027397,7]
[334479456,1723153842703,-500.0,0.00027397,7]
[334479457,1723153842713,-500.0,0.00027397,7]
[334479458,1723153842723,-500.0,0.00027397,7]
[334479459,1723153842732,-500.0,0.00027397,7]
[334479460,1723153842741,-500.0,0.00027397,7]
[334479461,1723153842751,-500.0,0.00027397,7]
[334479462,1723153842760,-500.0,0.00027397,7]
[334479463,1723153842770,-501.03929635,0.00027397,7]
[334479464,1723153842780,-500.0,0.00027397,7]
[334479465,1723153842788,-500.0,0.00027397,7]
[334479466,1723153842798,-500.0,0.00027397,7]
[334479467,1723153842808,-500.0,0.00027397,7]
[334479468,1723153842817,-500.0,0.00027397,7]
[334479469,1723153842827,-500.0,0.00027397,7]
[334479470,1723153842837,-500.0,0.00027397,7]
[334479471,1723153842847,-500.0,0.00027397,7]
[334479472,1723153843015,-500.0,0.00027397,5]
[334479473,1723153843026,-500.0,0.00027397,7]
[334479474,1723153843035,-500.0,0.00027397,7]
[334479475,1723153843046,-500.0,0.00027397,7]
[334479476,1723153843055,-838.4,0.00027397,7]
[334479477,1723153843065,-644.99655362,0.00027397,7]
[334479478,1723153843074,-500.0,0.00027397,7]
[334479479,1723153843089,-500.0,0.00027397,7]
[334479480,1723153843099,-500.0,0.00027397,7]
[334479481,1723153843109,-500.0,0.00027397,7]
[334479482,1723153843119,-226.51614372,0.00027397,7]
[334479483,1723153843129,-500.0,0.00027397,7]
[334479484,1723153843138,-288.445402,0.00027397,7]
[334479485,1723153843148,-500.0,0.00027397,7]
[334479486,1723153843161,-500.0,0.00027397,7]
[334479487,1723153843171,-500.0,0.00027397,7]
[334479488,1723153843181,-487.14614003,0.00027397,7]
[334479489,1723153843190,-500.0,0.00027397,7]
[334479490,1723153843200,-563.03,0.00027397,7]
[334479491,1723153843209,-500.0,0.00027397,7]
[334479492,1723153843219,-500.0,0.00027397,7]
[334479493,1723153843229,-500.0,0.00027397,7]
[334479494,1723153843239,-500.0,0.00027397,7]
[334479495,1723153843249,-500.0,0.00027397,7]
[334479496,1723153843259,-500.0,0.00027397,7]
[334479497,1723153843268,-500.0,0.00027397,7]
[334479498,1723153843278,-500.0,0.00027397,7]
[334479500,1723153843287,-500.0,0.00027397,7]
[334479502,1723153843298,-500.0,0.00027397,7]
[334479504,1723153843307,-500.0,0.00027397,7]
[334479507,1723153843316,-500.0,0.00027397,7]
[334479510,1723153843330,-163.03,0.00027397,7]
[334479512,1723153843339,-320.71243966,0.00027397,7]
[334479515,1723153843349,-500.0,0.00027397,7]
[334479517,1723153843358,-500.0,0.00027397,7]
[334479519,1723153843368,-500.0,0.00027397,7]
[334479521,1723153843377,-500.0,0.00027397,7]
[334479523,1723153843387,-500.0,0.00027397,7]
[334479525,1723153843396,-500.0,0.00027397,7]
[334479527,1723153843405,-576.31079319,0.00027397,7]
[334479529,1723153843415,-500.0,0.00027397,7]
[334479531,1723153843424,-500.0,0.00027397,7]
[334479533,1723153843433,-525.55163915,0.00027397,7]
[334479535,1723153843443,-739.49,0.00027397,7]
[334479537,1723153843453,-606.63,0.00027397,7]
[334479539,1723153843462,-500.0,0.00027397,7]
[334479541,1723153843471,-500.0,0.00027397,7]
[334479543,1723153843481,-500.0,0.00027397,7]
[334479544,1723153843490,-500.0,0.00027397,7]
[334479545,1723153843500,-500.0,0.00027397,2]
[334479546,1723153843510,-500.0,0.00027397,7]
[334479547,1723153843519,-500.0,0.00027397,7]
[334479548,1723153843529,-500.0,0.00027397,7]
[334479549,1723153843538,-151.0,0.00027397,7]
[334479550,1723153843548,-151.0,0.00027397,7]
[334479551,1723153843558,-500.0,0.00027397,7]
[334479552,1723153843567,-500.0,0.00027397,7]
[334479553,1723153843578,-500.0,0.00027397,7]
[334479554,1723153843591,-151.0,0.00027397,7]
[334479555,1723153843603,-221.956558,0.00027397,7]
[334479556,1723153843612,-500.0,0.00027397,7]
[334479557,1723153843622,-1471.08,0.00027397,7]
[334479558,1723153843632,-500.0,0.00027397,7]
[334479559,1723153843642,-500.0,0.00027397,7]
[334479560,1723153843652,-500.0,0.00027397,7]
[334479561,1723153843661,-500.0,0.00027397,7]
[334479562,1723153843670,-588.8,0.00027397,7]
[334479563,1723153843681,-524.92,0.00027397,7]
[334479564,1723153843691,-500.0,0.00027397,7]
[334479565,1723153843700,-500.0,0.00027397,7]
[334479566,1723153843711,-500.0,0.00027397,7]
[334479567,1723153843721,-500.0,0.00027397,7]
[334479568,1723153843730,-716.21,0.00027397,7]
[334479569,1723153843740,-500.0,0.00027397,7]
[334479570,1723153843751,-524.15,0.00027397,7]
[334479571,1723153843761,-500.0,0.00027397,7]
[334479572,1723153843770,-500.0,0.00027397,7]
[334479573,1723153843780,-500.0,0.00027397,7]
[334479574,1723153843789,-500.0,0.00027397,7]
[334479575,1723153843799,-500.0,0.00027397,7]
[334479576,1723153843809,-500.0,0.00027397,7]
[334479578,1723153843818,-1073.49,0.00027397,7]
[334479580,1723153843833,-500.0,0.00027397,7]
[334479582,1723153843842,-500.0,0.00027397,7]
[334479583,1723153843853,-500.0,0.00027397,7]
[334479584,1723153843864,-500.0,0.00027397,7]
[334479585,1723153843873,-500.0,0.00027397,7]
[334479586,1723153843883,-500.0,0.00027397,7]
[334479587,1723153843892,-500.0,0.00027397,7]
[334479588,1723153843902,-226.03843772,0.00027397,7]
[334479589,1723153843912,-500.0,0.00027397,7]
[334479590,1723153843922,-500.0,0.00027397,7]
[334479591,1723153843932,-500.0,0.00027397,7]
[334479592,1723153843942,-500.0,0.00027397,7]
[334479593,1723153843951,-500.0,0.00027397,7]
[334479594,1723153843961,-240.73582674,0.00027397,7]
[334479595,1723153843971,-500.0,0.00027397,7]
[334479596,1723153843980,-500.0,0.00027397,7]
[334479597,1723153843990,-500.0,0.00027397,2]
[334479598,1723153844000,-500.0,0.00027397,7]
[334479599,1723153844010,-500.0,0.00027397,7]
[334479600,1723153844020,-500.0,0.00027397,7]
[334479601,1723153844030,-500.0,0.00027397,7]
[334479602,1723153844039,-500.0,0.00027397,7]
[334479603,1723153844049,-500.0,0.00027397,7]
[334479604,1723153844059,-500.0,0.00027397,7]
[334479605,1723153844068,-500.0,0.00027397,7]
[334479606,1723153844078,-531.12424059,0.00027397,7]
[334479607,1723153844093,-510.22,0.00027397,7]
[334479608,1723153844102,-500.0,0.00027397,7]
[334479609,1723153844112,-500.0,0.00027397,7]
[334479610,1723153844121,-500.0,0.00027397,7]
[334479611,1723153844131,-500.0,0.00027397,7]
[334479612,1723153844140,-500.0,0.00027397,7]
[334479613,1723153844150,-500.0,0.00027397,7]
[334479614,1723153844161,-500.0,0.00027397,7]
[334479615,1723153844174,-500.0,0.00027397,7]
[334479616,1723153844184,-500.0,0.00027397,7]
[334479617,1723153844193,-500.0,0.00027397,7]
[334479618,1723153844203,-151.0,0.00027397,7]
[334479619,1723153844212,-500.0,0.00027397,7]
[334479620,1723153844222,-500.0,0.00027397,7]
[334479621,1723153844231,-500.0,0.00027397,7]
[334479622,1723153844240,-500.0,0.00027397,7]
[334479623,1723153844250,-500.0,0.00027397,7]
[334479624,1723153844260,-505.33,0.00027397,7]
[334479625,1723153844269,-500.0,0.00027397,7]
[334479626,1723153844280,-620.93,0.00027397,7]
[334479627,1723153844289,-500.0,0.00027397,7]
[334479628,1723153844298,-500.0,0.00027397,7]
[334479629,1723153844308,-638.46,0.00027397,7]
[334479630,1723153844317,-500.0,0.00027397,7]
[334479631,1723153844326,-500.0,0.00027397,7]
[334479632,1723153844345,-710.64,0.00027397,7]
[334479633,1723153844355,-500.0,0.00027397,7]
[334479634,1723153844364,-500.0,0.00027397,7]
[334479635,1723153844374,-500.0,0.00027397,7]
[334479636,1723153844383,-500.0,0.00027397,7]
[334479637,1723153844392,-500.0,0.00027397,7]
[334479638,1723153844402,-500.0,0.00027397,7]
[334479639,1723153844412,-151.0,0.00027397,7]
[334479640,1723153844421,-151.0,0.00027397,7]
[334479641,1723153844431,-500.0,0.00027397,7]
[334479642,1723153844441,-500.0,0.00027397,7]
[334479643,1723153844450,-500.0,0.00027397,7]
[334479644,1723153844460,-592.15,0.00027397,7]
[334479645,1723153844469,-221.87172236,0.00027397,7]
[334479646,1723153844479,-500.0,0.00027397,7]
[334479647,1723153844488,-594.01,0.00027397,7]
[334479648,1723153844497,-500.0,0.00027397,7]
[334479649,1723153844507,-500.0,0.00027397,7]
[334479650,1723153844518,-500.0,0.00027397,7]
[334479651,1723153844527,-500.0,0.00027397,7]
[334479652,1723153844536,-500.0,0.00027397,7]
[334479653,1723153844545,-151.0,0.00027397,2]
[334479654,1723153844554,-151.0,0.00027397,2]
[334479655,1723153844564,-277.324012,0.00027397,7]
[334479656,1723153844573,-500.0,0.00027397,7]
[334479657,1723153844585,-151.0,0.00027397,7]
[334479658,1723153844594,-151.0,0.00027397,7]
[334479659,1723153844604,-500.0,0.00027397,7]
[334479660,1723153844612,-500.0,0.00027397,7]
[334479661,1723153844621,-500.0,0.00027397,7]
[334479662,1723153844630,-976.01,0.00027397,7]
[334479663,1723153844639,-833.58,0.00027397,7]
[334479664,1723153844648,-500.0,0.00027397,7]
[334479665,1723153844658,-500.0,0.00027397,7]
[334479666,1723153844668,-1059.42,0.00027397,7]
[334479667,1723153844678,-500.0,0.00027397,7]
[334479668,1723153844687,-151.0,0.00027397,7]
[334479669,1723153844697,-500.0,0.00027397,7]
[334479670,1723153844707,-500.0,0.00027397,7]
[334479671,1723153844717,-500.0,0.00027397,7]
[334479672,1723153844728,-500.0,0.00027397,7]
[334479673,1723153844739,-500.0,0.00027397,7]
[334479674,1723153844749,-500.0,0.00027397,7]
[334479675,1723153844759,-500.0,0.00027397,7]
[334479676,1723153844768,-500.0,0.00027397,7]
[334479677,1723153844777,-151.0,0.00027397,7]
[334479678,1723153844787,-500.0,0.00027397,7]
[334479679,1723153844797,-500.0,0.00027397,7]
[334479680,1723153844806,-500.0,0.00027397,7]
[334479681,1723153844815,-500.0,0.00027397,7]
[334479682,1723153844826,-500.0,0.00027397,7]
[334479683,1723153844841,-500.0,0.00027397,7]
[334479684,1723153844850,-500.0,0.00027397,7]
[334479685,1723153844860,-500.0,0.00027397,7]
[334479686,1723153844870,-500.0,0.00027397,7]
[334479687,1723153844879,-500.0,0.00027397,7]
[334479688,1723153844888,-500.0,0.00027397,7]
[334479689,1723153844897,-500.0,0.00027397,7]
[334479690,1723153844907,-500.0,0.00027397,7]
[334479691,1723153844916,-500.0,0.00027397,7]
[334479692,1723153844925,-500.0,0.00027397,7]
[334479693,1723153844936,-191.533825,0.00027397,7]
[334479694,1723153844946,-500.0,0.00027397,7]
[334479695,1723153844956,-500.0,0.00027397,7]
[334479696,1723153844966,-510.05,0.00027397,7]
[334479697,1723153844975,-500.0,0.00027397,7]
[334479698,1723153844984,-933.44,0.00027397,7]
[334479699,1723153844994,-500.0,0.00027397,7]
[334479700,1723153845003,-500.0,0.00027397,7]
[334479701,1723153845012,-500.0,0.00027397,7]
[334479702,1723153845021,-500.0,0.00027397,7]
[334479703,1723153845030,-726.54,0.00027397,7]
[334479704,1723153845039,-500.0,0.00027397,7]
[334479705,1723153845048,-311.4453396,0.00027397,7]
[334479706,1723153845058,-500.0,0.00027397,7]
[334479707,1723153845067,-500.0,0.00027397,7]
[334479708,1723153845077,-500.0,0.00027397,7]
[334479709,1723153845087,-500.0,0.00027397,7]
[334479710,1723153845097,-500.0,0.00027397,7]
[334479711,1723153845106,-500.0,0.00027397,7]
[334479712,1723153845115,-151.0,0.00027397,7]
[334479713,1723153845125,-500.0,0.00027397,7]
[334479714,1723153845135,-757.23,0.00027397,7]
[334479715,1723153845144,-500.0,0.00027397,7]
[334479716,1723153845154,-1164.43,0.00027397,7]
[334479717,1723153845168,-500.0,0.00027397,7]
[334479718,1723153845177,-500.0,0.00027397,7]
[334479719,1723153845186,-1295.5,0.00027397,7]
[334479720,1723153845195,-543.45,0.00027397,7]
[334479721,1723153845206,-612.36,0.00027397,7]
[334479722,1723153845215,-899.03,0.00027397,7]
[334479723,1723153845224,-500.0,0.00027397,7]
[334479724,1723153845233,-1017.48,0.00027397,7]
[334479725,1723153845244,-500.0,0.00027397,7]
[334479726,1723153845253,-500.0,0.00027397,7]
[334479727,1723153845262,-500.0,0.00027397,7]
[334479728,1723153845272,-500.0,0.00027397,7]
[334479729,1723153845281,-500.0,0.00027397,7]
[334479730,1723153845290,-593.4,0.00027397,7]
[334479731,1723153845300,-500.0,0.00027397,7]
[334479732,1723153845310,-500.0,0.00027397,7]
[334479733,1723153845321,-583.28,0.00027397,7]
[334479734,1723153845332,-500.0,0.00027397,7]
[334479735,1723153845341,-151.0,0.00027397,7]
[334479736,1723153845350,-500.0,0.00027397,7]
[334479737,1723153845359,-500.0,0.00027397,7]
[334479738,1723153845368,-1271.17,0.00027397,7]
[334479739,1723153845377,-500.0,0.00027397,7]
[334479740,1723153845387,-300.25,0.00027397,7]
[334479741,1723153845396,-500.0,0.00027397,7]
[334479742,1723153845406,-500.0,0.00027397,7]
[334479743,1723153845416,-734.09,0.00027397,7]
[334479744,1723153845425,-500.0,0.00027397,7]
[334479745,1723153845435,-500.0,0.00027397,7]